[Event "Late-Titled-Tuesday-Blitz-April-23-2024"]
[Site "Chess.com"]
[Date "2024.04.23"]
[Round "6"]
[White "prochn"]
[Black "NMJeevanK"]
[Result "0-1"]
[WhiteElo "2470"]
[BlackElo "2667"]
[TimeControl "180+1"]
[EndTime "15:08:06 PDT"]
[Termination "NMJeevanK won by resignation"]

1. d4 {[%clk 0:03:00.9]} 1... g6 {[%clk 0:02:58.5]} 2. g3 {[%clk 0:02:59]} 2...
Bg7 {[%clk 0:02:58.4]} 3. Bg2 {[%clk 0:02:59.6]} 3... d6 {[%clk 0:02:58.5]} 4.
Nf3 {[%clk 0:02:59.6]} 4... Nf6 {[%clk 0:02:59.1]} 5. c4 {[%clk 0:02:59.4]} 5...
O-O {[%clk 0:02:59.4]} 6. O-O {[%clk 0:02:59.5]} 6... c6 {[%clk 0:03:00]} 7. Nc3
{[%clk 0:02:58.5]} 7... Bf5 {[%clk 0:03:00.2]} 8. Nh4 {[%clk 0:02:58.6]} 8...
Be6 {[%clk 0:03:00.4]} 9. b3 {[%clk 0:02:42.7]} 9... d5 {[%clk 0:03:00.5]} 10.
cxd5 {[%clk 0:02:40.6]} 10... cxd5 {[%clk 0:02:59.7]} 11. Nf3 {[%clk 0:02:34.6]}
11... Nc6 {[%clk 0:02:57.9]} 12. a4 {[%clk 0:02:21.4]} 12... Rc8 {[%clk
0:02:57]} 13. Bb2 {[%clk 0:02:17.4]} 13... Qd7 {[%clk 0:02:52.6]} 14. Ne5 {[%clk
0:01:57.4]} 14... Nxe5 {[%clk 0:02:42.8]} 15. dxe5 {[%clk 0:01:57.5]} 15... Ng4
{[%clk 0:02:43.5]} 16. Nxd5 {[%clk 0:01:55.1]} 16... Nxe5 {[%clk 0:02:36.9]} 17.
e4 {[%clk 0:01:47.4]} 17... Rfd8 {[%clk 0:02:26.7]} 18. Qe2 {[%clk 0:01:44.5]}
18... h5 {[%clk 0:02:09.4]} 19. Rfd1 {[%clk 0:01:41.5]} 19... Bg4 {[%clk
0:01:53.5]} 20. f3 {[%clk 0:01:40.7]} 20... Nxf3+ {[%clk 0:01:51.8]} 21. Bxf3
{[%clk 0:01:38.6]} 21... Bxf3 {[%clk 0:01:51.8]} 22. Qxf3 {[%clk 0:01:38.8]}
22... Bxb2 {[%clk 0:01:51.6]} 23. Nf6+ {[%clk 0:01:37.6]} 23... Bxf6 {[%clk
0:01:52]} 24. Rxd7 {[%clk 0:01:37.6]} 24... Rxd7 {[%clk 0:01:52.4]} 25. Rf1
{[%clk 0:01:28.2]} 25... Rc3 {[%clk 0:01:41.9]} 26. Qf4 {[%clk 0:01:24.5]} 26...
Bd4+ {[%clk 0:01:33.6]} 27. Kh1 {[%clk 0:01:24.3]} 27... e5 {[%clk 0:01:34.1]}
28. Qf6 {[%clk 0:01:05.6]} 28... Rxb3 {[%clk 0:01:25.7]} 29. Rc1 {[%clk
0:01:04.8]} 29... Rc3 {[%clk 0:01:20.2]} 30. Rb1 {[%clk 0:00:50.1]} 30... Rc6
{[%clk 0:01:15]} 31. Qf1 {[%clk 0:00:48.1]} 31... Rdc7 {[%clk 0:01:14]} 32. Qb5
{[%clk 0:00:36.6]} 32... Rc2 {[%clk 0:00:56.8]} 33. Qd5 {[%clk 0:00:29.6]} 33...
Rf2 {[%clk 0:00:52.6]} 34. Qd8+ {[%clk 0:00:16.4]} 34... Kg7 {[%clk 0:00:53]}
35. Qh4 {[%clk 0:00:13.4]} 35... Rcc2 {[%clk 0:00:46.1]} 36. Rd1 {[%clk
0:00:11.6]} 36... a6 {[%clk 0:00:43.2]} 37. Rb1 {[%clk 0:00:10.7]} 37... b5
{[%clk 0:00:42.8]} 38. axb5 {[%clk 0:00:11.1]} 38... axb5 {[%clk 0:00:43.7]} 39.
Qh3 {[%clk 0:00:10.8]} 39... b4 {[%clk 0:00:42.5]} 40. g4 {[%clk 0:00:10.4]}
40... hxg4 {[%clk 0:00:39.7]} 41. Qg3 {[%clk 0:00:10.1]} 41... b3 {[%clk
0:00:35]} 42. Qh4 {[%clk 0:00:08.2]} 42... b2 {[%clk 0:00:30.5]} 43. Rg1 {[%clk
0:00:08.2]} 0-1

[Event "Late-Titled-Tuesday-Blitz-April-23-2024"]
[Site "Chess.com"]
[Date "2024.04.23"]
[Round "6"]
[White "cthake"]
[Black "PawnEatingZombie"]
[Result "1-0"]
[WhiteElo "1875"]
[BlackElo "2220"]
[TimeControl "180+1"]
[EndTime "15:08:06 PDT"]
[Termination "cthake won on time"]

1. e4 {[%clk 0:03:00.9]} 1... c5 {[%clk 0:02:59]} 2. Nf3 {[%clk 0:02:59.9]} 2...
Nc6 {[%clk 0:02:58.2]} 3. c3 {[%clk 0:02:59.3]} 3... Nf6 {[%clk 0:02:56.2]} 4.
Bd3 {[%clk 0:02:57.7]} 4... c4 {[%clk 0:02:47.8]} 5. Bc2 {[%clk 0:02:57.5]} 5...
e6 {[%clk 0:02:26.6]} 6. O-O {[%clk 0:02:57.2]} 6... Be7 {[%clk 0:02:21.4]} 7.
h3 {[%clk 0:02:53.4]} 7... a6 {[%clk 0:02:15.1]} 8. a4 {[%clk 0:02:50.5]} 8...
Rb8 {[%clk 0:02:13.8]} 9. e5 {[%clk 0:02:46]} 9... Nd5 {[%clk 0:02:13]} 10. d4
{[%clk 0:02:45.3]} 10... cxd3 {[%clk 0:02:13]} 11. Qxd3 {[%clk 0:02:36.6]} 11...
d6 {[%clk 0:02:02.3]} 12. exd6 {[%clk 0:02:32]} 12... Bxd6 {[%clk 0:02:00]} 13.
Bg5 {[%clk 0:02:28.7]} 13... Be7 {[%clk 0:01:51.3]} 14. Bxe7 {[%clk 0:02:21.7]}
14... Qxe7 {[%clk 0:01:52.2]} 15. Qe4 {[%clk 0:02:05.3]} 15... Nf6 {[%clk
0:01:48.6]} 16. Qe2 {[%clk 0:02:01.5]} 16... O-O {[%clk 0:01:48.6]} 17. Na3
{[%clk 0:01:58.6]} 17... b6 {[%clk 0:01:38.2]} 18. Rad1 {[%clk 0:01:57.5]} 18...
Bb7 {[%clk 0:01:34.9]} 19. Nc4 {[%clk 0:01:55.8]} 19... Qc7 {[%clk 0:01:35]} 20.
Nce5 {[%clk 0:01:53.3]} 20... Nxe5 {[%clk 0:01:33.3]} 21. Nxe5 {[%clk
0:01:50.7]} 21... Rbd8 {[%clk 0:01:27]} 22. Ng4 {[%clk 0:01:26.2]} 22... Nxg4
{[%clk 0:01:24.7]} 23. Qxg4 {[%clk 0:01:24.9]} 23... Qc6 {[%clk 0:01:21.5]} 24.
f3 {[%clk 0:01:07.1]} 24... Qc5+ {[%clk 0:01:17.7]} 25. Kh1 {[%clk 0:01:07.2]}
25... f5 {[%clk 0:01:02.8]} 26. Qg5 {[%clk 0:00:57.2]} 26... Rxd1 {[%clk
0:01:01.9]} 27. Rxd1 {[%clk 0:00:56.6]} 27... Bc6 {[%clk 0:00:52.5]} 28. Rd8
{[%clk 0:00:54.7]} 28... h6 {[%clk 0:00:39.1]} 29. Rxf8+ {[%clk 0:00:52.1]}
29... Qxf8 {[%clk 0:00:40]} 30. Qe3 {[%clk 0:00:50.9]} 30... Qd6 {[%clk
0:00:17.5]} 31. Qxb6 {[%clk 0:00:47.5]} 31... Kh7 {[%clk 0:00:06.4]} 32. Qxa6
{[%clk 0:00:36]} 32... Qg3 {[%clk 0:00:06.3]} 33. Qf1 {[%clk 0:00:34.1]} 33...
Bd5 {[%clk 0:00:03.1]} 34. b4 {[%clk 0:00:31.2]} 34... Qe5 {[%clk 0:00:01.8]}
35. c4 {[%clk 0:00:26.4]} 35... Ba8 {[%clk 0:00:01.3]} 36. c5 {[%clk 0:00:26.3]}
1-0

[Event "Late-Titled-Tuesday-Blitz-April-23-2024"]
[Site "Chess.com"]
[Date "2024.04.23"]
[Round "6"]
[White "WoolworthsManly"]
[Black "teresin05"]
[Result "0-1"]
[WhiteElo "2666"]
[BlackElo "2334"]
[TimeControl "180+1"]
[EndTime "15:08:09 PDT"]
[Termination "teresin05 won on time"]

1. e4 {[%clk 0:03:00.9]} 1... c5 {[%clk 0:02:58.7]} 2. Nf3 {[%clk 0:02:58.8]}
2... Nc6 {[%clk 0:02:59.1]} 3. d4 {[%clk 0:02:55.4]} 3... cxd4 {[%clk 0:03:00]}
4. Nxd4 {[%clk 0:02:55.8]} 4... Nf6 {[%clk 0:03:00.7]} 5. Nc3 {[%clk 0:02:53.5]}
5... d6 {[%clk 0:03:01]} 6. Bg5 {[%clk 0:02:46.2]} 6... e6 {[%clk 0:02:59.9]} 7.
Qd2 {[%clk 0:02:40.2]} 7... a6 {[%clk 0:02:59.6]} 8. O-O-O {[%clk 0:02:34.5]}
8... Bd7 {[%clk 0:02:57.5]} 9. Kb1 {[%clk 0:02:29.5]} 9... b5 {[%clk 0:02:45.8]}
10. f3 {[%clk 0:02:25.7]} 10... Be7 {[%clk 0:02:32.4]} 11. Nxc6 {[%clk
0:02:19.7]} 11... Bxc6 {[%clk 0:02:32.2]} 12. h4 {[%clk 0:02:16.8]} 12... O-O
{[%clk 0:02:18]} 13. Ne2 {[%clk 0:02:11.6]} 13... Qb6 {[%clk 0:01:54.5]} 14. g4
{[%clk 0:02:04.3]} 14... b4 {[%clk 0:01:51.2]} 15. Bxf6 {[%clk 0:01:53.8]} 15...
Bxf6 {[%clk 0:01:50.3]} 16. g5 {[%clk 0:01:54.2]} 16... Be7 {[%clk 0:01:48.5]}
17. h5 {[%clk 0:01:52]} 17... a5 {[%clk 0:01:41.9]} 18. Nd4 {[%clk 0:01:48.7]}
18... Bd7 {[%clk 0:01:37.1]} 19. g6 {[%clk 0:01:44.1]} 19... a4 {[%clk
0:01:28.7]} 20. h6 {[%clk 0:01:38.7]} 20... fxg6 {[%clk 0:01:28.5]} 21. hxg7
{[%clk 0:01:37.7]} 21... Rf7 {[%clk 0:01:29]} 22. Bc4 {[%clk 0:01:27.7]} 22...
Rxg7 {[%clk 0:01:15.7]} 23. Bxe6+ {[%clk 0:01:11.3]} 23... Bxe6 {[%clk
0:01:12.3]} 24. Nxe6 {[%clk 0:01:12.2]} 24... Rf7 {[%clk 0:01:12.7]} 25. Qd5
{[%clk 0:01:01]} 25... Rc8 {[%clk 0:01:06.2]} 26. Ng5 {[%clk 0:00:34.6]} 26...
Bxg5 {[%clk 0:01:04.8]} 27. Rxh7 {[%clk 0:00:34.7]} 27... Qc7 {[%clk 0:00:48.3]}
28. c4 {[%clk 0:00:06.8]} 28... Kxh7 {[%clk 0:00:46.1]} 29. Qxg5 {[%clk
0:00:05.2]} 29... Qxc4 {[%clk 0:00:44.1]} 30. Rh1+ {[%clk 0:00:05.1]} 30... Kg7
{[%clk 0:00:43]} 31. Qh6+ {[%clk 0:00:04.4]} 31... Kf6 {[%clk 0:00:43.3]} 32.
Qf4+ {[%clk 0:00:03.7]} 32... Ke7 {[%clk 0:00:42.5]} 33. Qg5+ {[%clk 0:00:03]}
33... Kd7 {[%clk 0:00:40.8]} 34. Ka1 {[%clk 0:00:03.4]} 34... a3 {[%clk
0:00:31.7]} 35. bxa3 {[%clk 0:00:02.4]} 35... bxa3 {[%clk 0:00:26.1]} 36. Qe3
{[%clk 0:00:01.7]} 36... Qc3+ {[%clk 0:00:20]} 37. Qxc3 {[%clk 0:00:01.7]} 37...
Rxc3 {[%clk 0:00:20.9]} 0-1

[Event "Late-Titled-Tuesday-Blitz-April-23-2024"]
[Site "Chess.com"]
[Date "2024.04.23"]
[Round "6"]
[White "dianamirza"]
[Black "BenchGM"]
[Result "0-1"]
[WhiteElo "2025"]
[BlackElo "2238"]
[TimeControl "180+1"]
[EndTime "15:08:10 PDT"]
[Termination "BenchGM won by checkmate"]

1. g3 {[%clk 0:02:47.5]} 1... d5 {[%clk 0:02:58.7]} 2. Bg2 {[%clk 0:02:48.4]}
2... Nf6 {[%clk 0:02:58.6]} 3. b3 {[%clk 0:02:49.3]} 3... c5 {[%clk 0:02:57.5]}
4. Bb2 {[%clk 0:02:50.2]} 4... Nc6 {[%clk 0:02:49.9]} 5. d3 {[%clk 0:02:51.1]}
5... d4 {[%clk 0:02:47.9]} 6. Nd2 {[%clk 0:02:52]} 6... e5 {[%clk 0:02:46.3]} 7.
Ngf3 {[%clk 0:02:50.2]} 7... h5 {[%clk 0:02:34.1]} 8. Nc4 {[%clk 0:02:46.6]}
8... Qc7 {[%clk 0:02:28.3]} 9. a4 {[%clk 0:02:46.6]} 9... Be6 {[%clk 0:02:15.7]}
10. e3 {[%clk 0:02:38.9]} 10... O-O-O {[%clk 0:02:10]} 11. Qe2 {[%clk 0:02:31]}
11... Nb4 {[%clk 0:01:58.2]} 12. O-O-O {[%clk 0:02:27.1]} 12... Na2+ {[%clk
0:01:18.4]} 13. Kb1 {[%clk 0:02:23]} 13... Nc3+ {[%clk 0:01:16.2]} 14. Bxc3
{[%clk 0:02:21.8]} 14... dxc3 {[%clk 0:01:16.1]} 15. Nfxe5 {[%clk 0:02:18.8]}
15... Ng4 {[%clk 0:01:01.4]} 16. f4 {[%clk 0:02:09.1]} 16... Nxe5 {[%clk
0:00:59.8]} 17. fxe5 {[%clk 0:02:02.4]} 17... b5 {[%clk 0:00:50.6]} 18. axb5
{[%clk 0:01:45.6]} 18... Be7 {[%clk 0:00:39.2]} 19. Qe1 {[%clk 0:01:33.4]} 19...
Bxc4 {[%clk 0:00:38.8]} 20. dxc4 {[%clk 0:01:32.2]} 20... Qa5 {[%clk 0:00:38.7]}
21. Rd3 {[%clk 0:01:18]} 21... Rxd3 {[%clk 0:00:35.3]} 22. cxd3 {[%clk
0:01:18.1]} 22... f6 {[%clk 0:00:25.5]} 23. exf6 {[%clk 0:00:43.1]} 23... Bxf6
{[%clk 0:00:24.3]} 24. Qc1 {[%clk 0:00:36.8]} 24... c2+ {[%clk 0:00:16.8]} 25.
Kxc2 {[%clk 0:00:36.2]} 25... Qc3+ {[%clk 0:00:16.3]} 26. Kd1 {[%clk 0:00:34.2]}
26... Qxd3+ {[%clk 0:00:14.8]} 27. Qd2 {[%clk 0:00:21.3]} 27... Qxb3+ {[%clk
0:00:14.6]} 28. Ke2 {[%clk 0:00:18.6]} 28... Qxc4+ {[%clk 0:00:14]} 29. Kf2
{[%clk 0:00:17.9]} 29... Rf8 {[%clk 0:00:12.6]} 30. Bh3+ {[%clk 0:00:17.2]}
30... Kc7 {[%clk 0:00:12.8]} 31. Kg2 {[%clk 0:00:15.5]} 31... Qe4+ {[%clk
0:00:12.1]} 32. Kg1 {[%clk 0:00:14.5]} 32... Bg5 {[%clk 0:00:10.5]} 33. Qd7+
{[%clk 0:00:11.9]} 33... Kb8 {[%clk 0:00:09.1]} 34. Qd6+ {[%clk 0:00:11.5]}
34... Kb7 {[%clk 0:00:08.5]} 35. Bg2 {[%clk 0:00:11.2]} 35... Bxe3# {[%clk
0:00:06.6]} 0-1

[Event "Late-Titled-Tuesday-Blitz-April-23-2024"]
[Site "Chess.com"]
[Date "2024.04.23"]
[Round "6"]
[White "maurovargas01"]
[Black "Iuckyducky"]
[Result "1-0"]
[WhiteElo "1920"]
[BlackElo "2227"]
[TimeControl "180+1"]
[EndTime "15:08:11 PDT"]
[Termination "maurovargas01 won by checkmate"]

1. e4 {[%clk 0:03:00.9]} 1... c5 {[%clk 0:02:57.4]} 2. Nc3 {[%clk 0:03:00.5]}
2... e6 {[%clk 0:02:57.2]} 3. f4 {[%clk 0:03:01.4]} 3... Nc6 {[%clk 0:02:57]} 4.
Nf3 {[%clk 0:03:02.3]} 4... g6 {[%clk 0:02:57.2]} 5. d3 {[%clk 0:03:02.2]} 5...
Bg7 {[%clk 0:02:57.7]} 6. g3 {[%clk 0:03:02.4]} 6... Nge7 {[%clk 0:02:58.3]} 7.
Bg2 {[%clk 0:03:02.6]} 7... d5 {[%clk 0:02:59]} 8. O-O {[%clk 0:03:00.8]} 8...
O-O {[%clk 0:02:52]} 9. e5 {[%clk 0:03:00.5]} 9... Rb8 {[%clk 0:02:45.2]} 10. g4
{[%clk 0:03:00.2]} 10... b5 {[%clk 0:02:39.9]} 11. Qe1 {[%clk 0:02:59]} 11...
Qb6 {[%clk 0:02:39.2]} 12. Ne2 {[%clk 0:02:52.6]} 12... c4+ {[%clk 0:02:36.6]}
13. d4 {[%clk 0:02:52.5]} 13... b4 {[%clk 0:02:34]} 14. c3 {[%clk 0:02:51.7]}
14... bxc3 {[%clk 0:02:31.8]} 15. bxc3 {[%clk 0:02:50.9]} 15... Qa5 {[%clk
0:02:17.8]} 16. Qh4 {[%clk 0:02:47.2]} 16... h6 {[%clk 0:02:04.6]} 17. f5 {[%clk
0:02:45.9]} 17... g5 {[%clk 0:01:34]} 18. Bxg5 {[%clk 0:02:44]} 18... exf5
{[%clk 0:01:24.2]} 19. Bxh6 {[%clk 0:02:34.6]} 19... Ng6 {[%clk 0:01:23.2]} 20.
Qh5 {[%clk 0:02:16.2]} 20... Rb2 {[%clk 0:00:41.2]} 21. Ng5 {[%clk 0:01:58.6]}
21... Bxe5 {[%clk 0:00:38.6]} 22. dxe5 {[%clk 0:01:47.6]} 22... Rxe2 {[%clk
0:00:33]} 23. gxf5 {[%clk 0:01:31.8]} 23... Qb6+ {[%clk 0:00:21.9]} 24. Kh1
{[%clk 0:01:30.3]} 24... Qb2 {[%clk 0:00:22]} 25. Qh3 {[%clk 0:01:02.1]} 25...
Ncxe5 {[%clk 0:00:12.8]} 26. Bxf8 {[%clk 0:00:54.5]} 26... Kxf8 {[%clk
0:00:13.7]} 27. Qh6+ {[%clk 0:00:36.3]} 27... Ke7 {[%clk 0:00:10.7]} 28. f6+
{[%clk 0:00:33.5]} 28... Kd6 {[%clk 0:00:09.1]} 29. Nxf7+ {[%clk 0:00:29]} 29...
Kc5 {[%clk 0:00:08.2]} 30. Qg5 {[%clk 0:00:21.7]} 30... Nxf7 {[%clk 0:00:01.6]}
31. Qxg6 {[%clk 0:00:20.1]} 31... Be6 {[%clk 0:00:02.5]} 32. Rab1 {[%clk
0:00:17.4]} 32... Qxa2 {[%clk 0:00:02.5]} 33. Qg3 {[%clk 0:00:13.9]} 33... Qd2
{[%clk 0:00:02.3]} 34. Qc7# {[%clk 0:00:11.5]} 1-0

[Event "Late-Titled-Tuesday-Blitz-April-23-2024"]
[Site "Chess.com"]
[Date "2024.04.23"]
[Round "6"]
[White "TimGrutter03"]
[Black "Binary010"]
[Result "0-1"]
[WhiteElo "2617"]
[BlackElo "2834"]
[TimeControl "180+1"]
[EndTime "15:08:12 PDT"]
[Termination "Binary010 won on time"]

1. c4 {[%clk 0:03:00.9]} 1... c5 {[%clk 0:02:56.5]} 2. Nf3 {[%clk 0:02:56.8]}
2... Nc6 {[%clk 0:02:56.6]} 3. g3 {[%clk 0:02:55.4]} 3... g6 {[%clk 0:02:55.8]}
4. Bg2 {[%clk 0:02:55.2]} 4... Bg7 {[%clk 0:02:56.6]} 5. O-O {[%clk 0:02:55.7]}
5... d6 {[%clk 0:02:56.9]} 6. Nc3 {[%clk 0:02:53.6]} 6... e5 {[%clk 0:02:57.1]}
7. d3 {[%clk 0:02:52.6]} 7... Nge7 {[%clk 0:02:57]} 8. Rb1 {[%clk 0:02:49.6]}
8... O-O {[%clk 0:02:56.6]} 9. a3 {[%clk 0:02:48.7]} 9... a5 {[%clk 0:02:56.6]}
10. Ne1 {[%clk 0:02:47.3]} 10... Be6 {[%clk 0:02:56.1]} 11. b4 {[%clk
0:02:47.2]} 11... axb4 {[%clk 0:02:49.8]} 12. axb4 {[%clk 0:02:47.3]} 12... cxb4
{[%clk 0:02:21.4]} 13. Nd5 {[%clk 0:02:46.1]} 13... Qa5 {[%clk 0:02:21.3]} 14.
Nxb4 {[%clk 0:02:45]} 14... Nxb4 {[%clk 0:02:17]} 15. Bd2 {[%clk 0:02:44.4]}
15... Nec6 {[%clk 0:02:14]} 16. Nc2 {[%clk 0:02:36.8]} 16... d5 {[%clk
0:02:00.1]} 17. Nxb4 {[%clk 0:02:29.7]} 17... Nd4 {[%clk 0:01:34.5]} 18. Nxd5
{[%clk 0:02:12.1]} 18... Qa4 {[%clk 0:01:33.7]} 19. e3 {[%clk 0:02:02.4]} 19...
Nf5 {[%clk 0:01:10]} 20. Qxa4 {[%clk 0:01:51.5]} 20... Rxa4 {[%clk 0:01:09.7]}
21. Rxb7 {[%clk 0:01:52.1]} 21... Rd8 {[%clk 0:01:05.7]} 22. Bc3 {[%clk
0:01:41.7]} 22... h5 {[%clk 0:01:04]} 23. h4 {[%clk 0:01:40.7]} 23... Ra3 {[%clk
0:01:01.5]} 24. Rc1 {[%clk 0:01:22.5]} 24... Nd6 {[%clk 0:01:00.6]} 25. Rb6
{[%clk 0:01:13.6]} 25... Nf5 {[%clk 0:00:56.9]} 26. e4 {[%clk 0:01:09]} 26...
Nh6 {[%clk 0:00:53.1]} 27. c5 {[%clk 0:01:04.1]} 27... Ng4 {[%clk 0:00:50.4]}
28. c6 {[%clk 0:01:02.3]} 28... Bf8 {[%clk 0:00:48.2]} 29. c7 {[%clk 0:01:00.8]}
29... Rc8 {[%clk 0:00:48.5]} 30. f3 {[%clk 0:00:54.4]} 30... Bc5+ {[%clk
0:00:30.7]} 31. d4 {[%clk 0:00:31]} 31... Bxb6 {[%clk 0:00:29.7]} 32. Ne7+
{[%clk 0:00:21.4]} 32... Kg7 {[%clk 0:00:23.3]} 33. Nxc8 {[%clk 0:00:21]} 33...
Bxc8 {[%clk 0:00:22]} 34. Bb2 {[%clk 0:00:02.2]} 34... Rb3 {[%clk 0:00:20.4]}
35. Ba1 {[%clk 0:00:02.4]} 35... Ne3 {[%clk 0:00:19.2]} 36. dxe5 {[%clk
0:00:02.5]} 36... Nc2+ {[%clk 0:00:10.1]} 0-1

[Event "Late-Titled-Tuesday-Blitz-April-23-2024"]
[Site "Chess.com"]
[Date "2024.04.23"]
[Round "6"]
[White "Sokoloco"]
[Black "Durarbayli"]
[Result "1-0"]
[WhiteElo "2775"]
[BlackElo "2904"]
[TimeControl "180+1"]
[EndTime "15:08:14 PDT"]
[Termination "Sokoloco won on time"]

1. b3 {[%clk 0:03:00.9]} 1... d5 {[%clk 0:02:59.2]} 2. Nf3 {[%clk 0:02:59.3]}
2... c5 {[%clk 0:02:59.6]} 3. Bb2 {[%clk 0:02:57.8]} 3... f6 {[%clk 0:02:59.5]}
4. e3 {[%clk 0:02:57.4]} 4... e5 {[%clk 0:02:59]} 5. d4 {[%clk 0:02:56.1]} 5...
cxd4 {[%clk 0:02:59]} 6. exd4 {[%clk 0:02:56.5]} 6... e4 {[%clk 0:02:59.5]} 7.
Nfd2 {[%clk 0:02:56.9]} 7... f5 {[%clk 0:02:55.3]} 8. c4 {[%clk 0:02:57.3]} 8...
Nf6 {[%clk 0:02:55.5]} 9. Nc3 {[%clk 0:02:55.9]} 9... Be6 {[%clk 0:02:50.1]} 10.
cxd5 {[%clk 0:02:37.8]} 10... Nxd5 {[%clk 0:02:49.8]} 11. Bc4 {[%clk 0:02:37.4]}
11... Bb4 {[%clk 0:02:42.7]} 12. Nxd5 {[%clk 0:02:24.4]} 12... Bxd5 {[%clk
0:02:42.2]} 13. Qh5+ {[%clk 0:02:24.5]} 13... g6 {[%clk 0:02:39.3]} 14. Qh6
{[%clk 0:02:25]} 14... Nc6 {[%clk 0:02:17.6]} 15. O-O {[%clk 0:02:05.8]} 15...
Bxd2 {[%clk 0:01:15.4]} 16. Qxd2 {[%clk 0:02:06.7]} 16... Qd6 {[%clk 0:01:14.2]}
17. Rac1 {[%clk 0:01:53.6]} 17... O-O-O {[%clk 0:01:13]} 18. Rfd1 {[%clk
0:01:23.1]} 18... Kb8 {[%clk 0:00:55]} 19. g3 {[%clk 0:01:19.5]} 19... Rhe8
{[%clk 0:00:53]} 20. Bxd5 {[%clk 0:01:19.4]} 20... Qxd5 {[%clk 0:00:53.9]} 21.
Rc5 {[%clk 0:01:19.9]} 21... Qd6 {[%clk 0:00:42.4]} 22. Rdc1 {[%clk 0:01:20.5]}
22... Ne5 {[%clk 0:00:36.2]} 23. Qb4 {[%clk 0:01:07.9]} 23... Nf3+ {[%clk
0:00:27.5]} 24. Kg2 {[%clk 0:01:08.4]} 24... Rd7 {[%clk 0:00:19.8]} 25. Qc4
{[%clk 0:00:46]} 25... a6 {[%clk 0:00:19.8]} 26. Ba3 {[%clk 0:00:38.4]} 26...
Nd2 {[%clk 0:00:02.6]} 27. Rc8+ {[%clk 0:00:32.6]} 27... Ka7 {[%clk 0:00:03.2]}
28. Bxd6 {[%clk 0:00:25.2]} 28... Nxc4 {[%clk 0:00:03.6]} 29. Bc5+ {[%clk
0:00:25.6]} 29... b6 {[%clk 0:00:04.1]} 30. Rxe8 {[%clk 0:00:26.2]} 30... Nb2
{[%clk 0:00:04.4]} 31. Re7 {[%clk 0:00:21.5]} 31... Rxe7 {[%clk 0:00:03.8]} 32.
Bxe7 {[%clk 0:00:22.4]} 32... Kb7 {[%clk 0:00:03.8]} 33. Bd6 {[%clk 0:00:21.6]}
33... a5 {[%clk 0:00:04]} 34. Rc7+ {[%clk 0:00:20.2]} 34... Ka6 {[%clk
0:00:04.2]} 35. Rxh7 {[%clk 0:00:20.9]} 35... Nd3 {[%clk 0:00:04.4]} 36. Rg7
{[%clk 0:00:20.2]} 36... Nc1 {[%clk 0:00:03.2]} 37. Rxg6 {[%clk 0:00:14.6]}
37... Nxa2 {[%clk 0:00:03.5]} 38. h4 {[%clk 0:00:15.3]} 38... Nc1 {[%clk
0:00:01.9]} 39. h5 {[%clk 0:00:15.8]} 1-0

[Event "Late-Titled-Tuesday-Blitz-April-23-2024"]
[Site "Chess.com"]
[Date "2024.04.23"]
[Round "6"]
[White "TigrVShlyape"]
[Black "Rodalquilar"]
[Result "1-0"]
[WhiteElo "3023"]
[BlackElo "2747"]
[TimeControl "180+1"]
[EndTime "15:08:15 PDT"]
[Termination "TigrVShlyape won on time"]

1. d4 {[%clk 0:02:55.4]} 1... d5 {[%clk 0:03:00]} 2. Bf4 {[%clk 0:02:55.1]} 2...
Nf6 {[%clk 0:02:58.9]} 3. e3 {[%clk 0:02:55.3]} 3... Bf5 {[%clk 0:02:59.3]} 4.
c4 {[%clk 0:02:54.9]} 4... e6 {[%clk 0:02:59.2]} 5. Nc3 {[%clk 0:02:55.2]} 5...
Bb4 {[%clk 0:02:57.5]} 6. Ne2 {[%clk 0:02:50.6]} 6... dxc4 {[%clk 0:02:55.4]} 7.
a3 {[%clk 0:02:47.5]} 7... Ba5 {[%clk 0:02:47.1]} 8. Qa4+ {[%clk 0:02:43]} 8...
Nc6 {[%clk 0:02:47.3]} 9. Qxc4 {[%clk 0:02:41.5]} 9... O-O {[%clk 0:02:40.8]}
10. b4 {[%clk 0:02:39.6]} 10... Bb6 {[%clk 0:02:41.2]} 11. Ng3 {[%clk
0:02:31.1]} 11... Bg6 {[%clk 0:02:36.4]} 12. Be2 {[%clk 0:02:28.3]} 12... Re8
{[%clk 0:01:58]} 13. Bg5 {[%clk 0:02:21.3]} 13... h6 {[%clk 0:01:50.3]} 14. Bh4
{[%clk 0:02:20.1]} 14... Bh7 {[%clk 0:01:40.3]} 15. Nh5 {[%clk 0:01:48.2]} 15...
g5 {[%clk 0:01:35.6]} 16. Bg3 {[%clk 0:01:46.5]} 16... e5 {[%clk 0:01:05.8]} 17.
Nxf6+ {[%clk 0:01:43.1]} 17... Qxf6 {[%clk 0:01:05.8]} 18. Nd5 {[%clk
0:01:43.1]} 18... Qd8 {[%clk 0:00:22.9]} 19. Nxb6 {[%clk 0:01:42.3]} 19... axb6
{[%clk 0:00:23.8]} 20. d5 {[%clk 0:01:37.4]} 20... Ne7 {[%clk 0:00:24.1]} 21.
Bxe5 {[%clk 0:00:58.3]} 21... Qxd5 {[%clk 0:00:22]} 22. Bb2 {[%clk 0:00:49.2]}
22... Qxc4 {[%clk 0:00:14.3]} 23. Bxc4 {[%clk 0:00:49.1]} 23... Be4 {[%clk
0:00:07.8]} 24. f3 {[%clk 0:00:45.6]} 24... Bd5 {[%clk 0:00:08.2]} 25. Be2
{[%clk 0:00:42.4]} 25... f5 {[%clk 0:00:07.1]} 26. Kf2 {[%clk 0:00:40.1]} 26...
Kf7 {[%clk 0:00:06.6]} 27. h4 {[%clk 0:00:40]} 27... Kg6 {[%clk 0:00:06.1]} 28.
hxg5 {[%clk 0:00:39.7]} 28... hxg5 {[%clk 0:00:07]} 29. e4 {[%clk 0:00:36.9]}
29... fxe4 {[%clk 0:00:04]} 30. fxe4 {[%clk 0:00:37]} 30... Bxe4 {[%clk
0:00:04.4]} 31. Bh5+ {[%clk 0:00:36.8]} 31... Kf5 {[%clk 0:00:04.4]} 32. Bxe8
{[%clk 0:00:36.7]} 32... Rxe8 {[%clk 0:00:03.4]} 33. Rae1 {[%clk 0:00:34.4]}
33... Nd5 {[%clk 0:00:03.5]} 34. Bc1 {[%clk 0:00:29.9]} 34... Kg4 {[%clk
0:00:03.2]} 35. Rh3 {[%clk 0:00:27.5]} 35... Rf8+ {[%clk 0:00:03.6]} 36. Kg1
{[%clk 0:00:27.8]} 36... Bf5 {[%clk 0:00:01.7]} 37. Rf3 {[%clk 0:00:26.5]} 37...
Rd8 {[%clk 0:00:01.7]} 38. Kf2 {[%clk 0:00:22.7]} 38... Nf4 {[%clk 0:00:02]} 39.
Rg3+ {[%clk 0:00:22.8]} 39... Kh5 {[%clk 0:00:02.1]} 40. Rh1+ {[%clk 0:00:23]}
40... Kg6 {[%clk 0:00:02.5]} 41. Bxf4 {[%clk 0:00:23.3]} 41... Rf8 {[%clk
0:00:03]} 42. Rxg5+ {[%clk 0:00:23.1]} 1-0